[Event "Titled Tuesday Blitz May 24 Late 2022"]
[White "Koutlas, Nikolaos"]
[Black "Sapunov, Evgeny"]
[WhiteFideId "25827138"]
[BlackFideId "4126661"]
[WhiteElo "1645"]
[BlackElo "2470"]
[Result "1-0"]
[Round "07"]
[TimeControl "180+1"]
[Date "2022.05.24"]
[WhiteClock "0:00:05"]
[BlackClock "0:00:05"]

1. e4 {[%clk 0:03:00]}  c5 {[%clk 0:02:58]} 2. Nf3 {[%clk 0:02:59]}  d6 {[%clk 0:02:58]} 3. b3 {[%clk 0:02:58]}  a6 {[%clk 0:02:57]} 4. Bb2 {[%clk 0:02:58]}  e5 {[%clk 0:02:56]} 5. a4 {[%clk 0:02:52]}  Nc6 {[%clk 0:02:55]} 6. Bc4 {[%clk 0:02:52]}  g6 {[%clk 0:02:53]} 7. O-O {[%clk 0:02:52]}  Bg7 {[%clk 0:02:54]} 8. Re1 {[%clk 0:02:38]}  Nf6 {[%clk 0:02:38]} 9. d4 {[%clk 0:02:23]}  cxd4 {[%clk 0:02:19]} 10. c3 {[%clk 0:02:23]}  dxc3 {[%clk 0:02:11]} 11. Ba3 {[%clk 0:02:20]}  c2 {[%clk 0:02:01]} 12. Qxc2 {[%clk 0:02:20]}  Bg4 {[%clk 0:01:51]} 13. Ng5 {[%clk 0:01:46]}  O-O {[%clk 0:01:48]} 14. h3 {[%clk 0:01:45]}  Nd4 {[%clk 0:01:45]} 15. Qd3 {[%clk 0:01:43]}  Be6 {[%clk 0:01:35]} 16. Nxe6 {[%clk 0:01:36]}  fxe6 {[%clk 0:01:34]} 17. Nc3 {[%clk 0:01:36]}  Kh8 {[%clk 0:01:21]} 18. Rad1 {[%clk 0:01:22]}  Nh5 {[%clk 0:01:08]} 19. Qe3 {[%clk 0:00:56]}  Nf4 {[%clk 0:01:00]} 20. Rd2 {[%clk 0:00:48]}  Rc8 {[%clk 0:00:53]} 21. Red1 {[%clk 0:00:33]}  h5 {[%clk 0:00:29]} 22. Rxd4 {[%clk 0:00:32]}  exd4 {[%clk 0:00:29]} 23. Rxd4 {[%clk 0:00:32]}  d5 {[%clk 0:00:25]} 24. exd5 {[%clk 0:00:22]}  e5 {[%clk 0:00:25]} 25. Rd1 {[%clk 0:00:16]}  Re8 {[%clk 0:00:22]} 26. Ne4 {[%clk 0:00:15]}  Qd7 {[%clk 0:00:16]} 27. Nc5 {[%clk 0:00:13]}  Qf5 {[%clk 0:00:12]} 28. Nxb7 {[%clk 0:00:12]}  Qg5 {[%clk 0:00:11]} 29. Qg3 {[%clk 0:00:10]}  Qf5 {[%clk 0:00:11]} 30. Nd6 {[%clk 0:00:10]}  Rxc4 {[%clk 0:00:10]} 31. Nxf5 {[%clk 0:00:08]}  Ne2+ {[%clk 0:00:10]} 32. Kh2 {[%clk 0:00:07]}  Nxg3 {[%clk 0:00:11]} 33. Nxg7 {[%clk 0:00:08]}  Kxg7 {[%clk 0:00:06]} 34. bxc4 {[%clk 0:00:08]}  Ne4 {[%clk 0:00:05]} 35. c5 {[%clk 0:00:07]}  Rb8 {[%clk 0:00:04]} 36. d6 {[%clk 0:00:07]}  Rb3 {[%clk 0:00:05]} 37. d7 {[%clk 0:00:06]}  Rxa3 {[%clk 0:00:05]} 38. d8=Q {[%clk 0:00:05]} 1-0


[Site "https://www.chess.com"]

[Event "Titled Tuesday Blitz May 24 Late 2022"]
[White "Krstulovic, Alex"]
[Black "Novikova, Galina"]
[WhiteFideId "760056"]
[BlackFideId "4157095"]
[WhiteElo "2193"]
[BlackElo "1863"]
[Result "1-0"]
[Round "07"]
[TimeControl "180+1"]
[Date "2022.05.25"]
[WhiteClock "0:02:33"]
[BlackClock "0:02:44"]

1. e4 {[%clk 0:03:00]}  e6 {[%clk 0:03:00]} 2. d4 {[%clk 0:03:00]}  d5 {[%clk 0:03:01]} 3. e5 {[%clk 0:03:00]}  c5 {[%clk 0:03:01]} 4. c3 {[%clk 0:03:00]}  Nc6 {[%clk 0:03:01]} 5. Nf3 {[%clk 0:03:00]}  Bd7 {[%clk 0:03:02]} 6. Be2 {[%clk 0:03:00]}  f6 {[%clk 0:03:02]} 7. O-O {[%clk 0:03:00]}  Qc7 {[%clk 0:03:03]} 8. Bf4 {[%clk 0:02:59]}  h6 {[%clk 0:03:03]} 9. Nh4 {[%clk 0:02:54]}  O-O-O {[%clk 0:02:59]} 10. Ng6 {[%clk 0:02:52]}  Rh7 {[%clk 0:02:59]} 11. exf6 {[%clk 0:02:51]}  Bd6 {[%clk 0:02:55]} 12. Bxd6 {[%clk 0:02:51]}  Qxd6 {[%clk 0:02:56]} 13. f7 {[%clk 0:02:51]}  Nf6 {[%clk 0:02:55]} 14. f8=Q {[%clk 0:02:51]}  Rxf8 {[%clk 0:02:55]} 15. Nxf8 {[%clk 0:02:51]}  Qxf8 {[%clk 0:02:56]} 16. Bd3 {[%clk 0:02:51]}  Rh8 {[%clk 0:02:56]} 17. dxc5 {[%clk 0:02:52]}  Qxc5 {[%clk 0:02:55]} 18. Nd2 {[%clk 0:02:52]}  g5 {[%clk 0:02:53]} 19. Nb3 {[%clk 0:02:52]}  Qd6 {[%clk 0:02:52]} 20. Nd4 {[%clk 0:02:51]}  Ne5 {[%clk 0:02:51]} 21. Be2 {[%clk 0:02:50]}  Rf8 {[%clk 0:02:50]} 22. Rc1 {[%clk 0:02:49]}  Kb8 {[%clk 0:02:50]} 23. c4 {[%clk 0:02:49]}  Neg4 {[%clk 0:02:49]} 24. Bxg4 {[%clk 0:02:47]}  Nxg4 {[%clk 0:02:49]} 25. Qxg4 {[%clk 0:02:45]}  e5 {[%clk 0:02:48]} 26. Qg3 {[%clk 0:02:45]}  Rf4 {[%clk 0:02:47]} 27. Ne2 {[%clk 0:02:45]}  Rg4 {[%clk 0:02:46]} 28. Qf3 {[%clk 0:02:43]}  e4 {[%clk 0:02:46]} 29. Qe3 {[%clk 0:02:39]}  Bc6 {[%clk 0:02:44]} 30. cxd5 {[%clk 0:02:39]}  Bxd5 {[%clk 0:02:44]} 31. Rfd1 {[%clk 0:02:38]}  Qe5 {[%clk 0:02:44]} 32. Rc5 {[%clk 0:02:33]} 1-0


[Site "https://www.chess.com"]

[Event "Titled Tuesday Blitz May 24 Late 2022"]
[White "Larino Nieto, David"]
[Black "Vajda, Levente"]
[WhiteFideId "2256444"]
[BlackFideId "1203975"]
[WhiteElo "2532"]
[BlackElo "2573"]
[Result "0-1"]
[Round "07"]
[TimeControl "180+1"]
[Date "2022.05.24"]
[WhiteClock "0:00:02"]
[BlackClock "0:01:00"]

1. e4 {[%clk 0:02:59]}  e5 {[%clk 0:02:59]} 2. Nc3 {[%clk 0:03:00]}  Nf6 {[%clk 0:02:59]} 3. Nf3 {[%clk 0:02:58]}  Nc6 {[%clk 0:02:58]} 4. g3 {[%clk 0:02:58]}  d5 {[%clk 0:02:56]} 5. exd5 {[%clk 0:02:57]}  Nxd5 {[%clk 0:02:57]} 6. Bg2 {[%clk 0:02:57]}  Nxc3 {[%clk 0:02:57]} 7. bxc3 {[%clk 0:02:58]}  Bd6 {[%clk 0:02:58]} 8. O-O {[%clk 0:02:57]}  O-O {[%clk 0:02:58]} 9. d3 {[%clk 0:02:57]}  Bg4 {[%clk 0:02:58]} 10. Rb1 {[%clk 0:02:57]}  Rb8 {[%clk 0:02:57]} 11. Re1 {[%clk 0:02:56]}  Bh5 {[%clk 0:02:53]} 12. a4 {[%clk 0:02:40]}  h6 {[%clk 0:02:46]} 13. Bd2 {[%clk 0:02:34]}  f5 {[%clk 0:02:40]} 14. Qc1 {[%clk 0:02:32]}  f4 {[%clk 0:02:40]} 15. gxf4 {[%clk 0:02:17]}  exf4 {[%clk 0:02:40]} 16. Rb5 {[%clk 0:02:11]}  Bg6 {[%clk 0:02:17]} 17. Kh1 {[%clk 0:02:10]}  Kh8 {[%clk 0:02:16]} 18. Rg1 {[%clk 0:02:08]}  a6 {[%clk 0:02:16]} 19. Rd5 {[%clk 0:02:02]}  Ne7 {[%clk 0:02:11]} 20. Nh4 {[%clk 0:01:56]}  Be8 {[%clk 0:01:59]} 21. Rd4 {[%clk 0:01:34]}  Nc6 {[%clk 0:01:58]} 22. Nf3 {[%clk 0:01:01]}  Nxd4 {[%clk 0:01:58]} 23. cxd4 {[%clk 0:01:02]}  b5 {[%clk 0:01:51]} 24. axb5 {[%clk 0:01:01]}  axb5 {[%clk 0:01:52]} 25. d5 {[%clk 0:01:01]}  b4 {[%clk 0:01:50]} 26. Nd4 {[%clk 0:00:46]}  f3 {[%clk 0:01:50]} 27. Nxf3 {[%clk 0:00:40]}  Bh5 {[%clk 0:01:50]} 28. Ng5 {[%clk 0:00:33]}  hxg5 {[%clk 0:01:44]} 29. Bxg5 {[%clk 0:00:34]}  Qd7 {[%clk 0:01:41]} 30. Qa1 {[%clk 0:00:15]}  Qf5 {[%clk 0:01:32]} 31. f4 {[%clk 0:00:05]}  Bxf4 {[%clk 0:01:20]} 32. Be4 {[%clk 0:00:05]}  Qxe4+ {[%clk 0:01:18]} 33. dxe4 {[%clk 0:00:04]}  Bf3+ {[%clk 0:01:19]} 34. Rg2 {[%clk 0:00:04]}  Bxg5 {[%clk 0:01:19]} 35. Qe5 {[%clk 0:00:04]}  Bh6 {[%clk 0:01:07]} 36. h4 {[%clk 0:00:01]}  Rbe8 {[%clk 0:01:05]} 37. Qd4 {[%clk 0:00:01]}  Rxe4 {[%clk 0:01:03]} 38. Qd3 {[%clk 0:00:02]}  Re1+ {[%clk 0:01:00]} 39. Kh2 {[%clk 0:00:02]}  Bf4+ {[%clk 0:01:00]} 0-1


[Site "https://www.chess.com"]

[Event "Titled Tuesday Blitz May 24 Late 2022"]
[White "Levine, David"]
[Black "Meunier-Pion, Jean"]
[WhiteFideId "2011611"]
[BlackFideId "20685327"]
[WhiteElo "2124"]
[BlackElo "2124"]
[Result "1-0"]
[Round "07"]
[TimeControl "180+1"]
[Date "2022.05.25"]
[WhiteClock "0:00:02"]
[BlackClock "0:00:01"]

1. d4 {[%clk 0:03:00]}  d5 {[%clk 0:02:58]} 2. c4 {[%clk 0:03:00]}  c6 {[%clk 0:02:54]} 3. Nf3 {[%clk 0:03:00]}  Nf6 {[%clk 0:02:52]} 4. Qc2 {[%clk 0:03:00]}  g6 {[%clk 0:02:50]} 5. Bf4 {[%clk 0:02:59]}  Bf5 {[%clk 0:02:50]} 6. Qb3 {[%clk 0:02:59]}  Qb6 {[%clk 0:02:30]} 7. e3 {[%clk 0:02:59]}  Bg7 {[%clk 0:02:27]} 8. Nc3 {[%clk 0:02:59]}  Qxb3 {[%clk 0:02:20]} 9. axb3 {[%clk 0:02:58]}  O-O {[%clk 0:02:21]} 10. h3 {[%clk 0:02:56]}  Ne4 {[%clk 0:02:17]} 11. g4 {[%clk 0:02:54]}  Nxc3 {[%clk 0:02:03]} 12. gxf5 {[%clk 0:02:54]}  Ne4 {[%clk 0:02:02]} 13. Rg1 {[%clk 0:02:53]}  Nd7 {[%clk 0:02:02]} 14. h4 {[%clk 0:02:47]}  Kh8 {[%clk 0:01:58]} 15. Bh3 {[%clk 0:02:42]}  Ndf6 {[%clk 0:01:49]} 16. Be5 {[%clk 0:02:33]}  Rfd8 {[%clk 0:01:28]} 17. Ng5 {[%clk 0:02:09]}  Nxg5 {[%clk 0:01:22]} 18. hxg5 {[%clk 0:02:08]}  Ne8 {[%clk 0:01:17]} 19. Bxg7+ {[%clk 0:01:52]}  Kxg7 {[%clk 0:01:16]} 20. fxg6 {[%clk 0:01:52]}  hxg6 {[%clk 0:01:16]} 21. Ke2 {[%clk 0:01:40]}  Nd6 {[%clk 0:01:13]} 22. c5 {[%clk 0:01:35]}  Nb5 {[%clk 0:00:56]} 23. b4 {[%clk 0:01:31]}  Rh8 {[%clk 0:00:55]} 24. Rh1 {[%clk 0:01:24]}  Rh5 {[%clk 0:00:54]} 25. f4 {[%clk 0:01:23]}  Rah8 {[%clk 0:00:53]} 26. Bg2 {[%clk 0:01:22]}  f6 {[%clk 0:00:50]} 27. gxf6+ {[%clk 0:01:08]}  exf6 {[%clk 0:00:51]} 28. Bf3 {[%clk 0:01:06]}  Rh2+ {[%clk 0:00:49]} 29. Kd3 {[%clk 0:00:57]}  Rxb2 {[%clk 0:00:43]} 30. Rxh8 {[%clk 0:00:52]}  Kxh8 {[%clk 0:00:43]} 31. Rg1 {[%clk 0:00:49]}  Kh7 {[%clk 0:00:41]} 32. f5 {[%clk 0:00:42]}  gxf5 {[%clk 0:00:35]} 33. Bh5 {[%clk 0:00:40]}  Rxb4 {[%clk 0:00:32]} 34. Be8 {[%clk 0:00:38]}  Rb2 {[%clk 0:00:25]} 35. Bd7 {[%clk 0:00:37]}  Na3 {[%clk 0:00:25]} 36. Bxf5+ {[%clk 0:00:33]}  Kh8 {[%clk 0:00:25]} 37. Rh1+ {[%clk 0:00:25]}  Kg8 {[%clk 0:00:24]} 38. Rh7 {[%clk 0:00:24]}  Nb1 {[%clk 0:00:23]} 39. e4 {[%clk 0:00:21]}  dxe4+ {[%clk 0:00:11]} 40. Kxe4 {[%clk 0:00:21]}  Nc3+ {[%clk 0:00:11]} 41. Kf4 {[%clk 0:00:20]}  Nd5+ {[%clk 0:00:12]} 42. Ke4 {[%clk 0:00:19]}  a5 {[%clk 0:00:10]} 43. Rd7 {[%clk 0:00:13]}  a4 {[%clk 0:00:09]} 44. Be6+ {[%clk 0:00:13]}  Kf8 {[%clk 0:00:10]} 45. Bxd5 {[%clk 0:00:13]}  cxd5+ {[%clk 0:00:10]} 46. Kxd5 {[%clk 0:00:13]}  a3 {[%clk 0:00:10]} 47. Rd8+ {[%clk 0:00:10]}  Ke7 {[%clk 0:00:11]} 48. Ra8 {[%clk 0:00:10]}  a2 {[%clk 0:00:11]} 49. c6 {[%clk 0:00:09]}  bxc6+ {[%clk 0:00:11]} 50. Kxc6 {[%clk 0:00:09]}  Rc2+ {[%clk 0:00:10]} 51. Kd5 {[%clk 0:00:09]}  Kf7 {[%clk 0:00:08]} 52. Kd6 {[%clk 0:00:08]}  Rd2 {[%clk 0:00:05]} 53. d5 {[%clk 0:00:07]}  Re2 {[%clk 0:00:03]} 54. Ra7+ {[%clk 0:00:07]}  Kg6 {[%clk 0:00:03]} 55. Kc5 {[%clk 0:00:06]}  f5 {[%clk 0:00:04]} 56. d6 {[%clk 0:00:06]}  Rc2+ {[%clk 0:00:04]} 57. Kd5 {[%clk 0:00:05]}  f4 {[%clk 0:00:04]} 58. d7 {[%clk 0:00:02]}  f3 {[%clk 0:00:02]} 59. Ke4 {[%clk 0:00:02]}  f2 {[%clk 0:00:01]} 60. Rxa2 {[%clk 0:00:02]} 1-0


[Site "https://www.chess.com"]

[Event "Titled Tuesday Blitz May 24 Late 2022"]
[White "Lopez Gracia, Fernando"]
[Black "Joubert, Dantelle"]
[WhiteFideId "2207184"]
[BlackFideId "14310813"]
[WhiteElo "2412"]
[BlackElo "1507"]
[Result "1/2-1/2"]
[Round "07"]
[TimeControl "180+1"]
[Date "2022.05.25"]
[WhiteClock "0:00:48"]
[BlackClock "0:00:04"]

1. c4 {[%clk 0:03:00]}  e6 {[%clk 0:02:45]} 2. Nf3 {[%clk 0:02:58]}  d5 {[%clk 0:02:45]} 3. d4 {[%clk 0:02:58]}  Nf6 {[%clk 0:02:43]} 4. g3 {[%clk 0:02:58]}  Be7 {[%clk 0:02:36]} 5. Bg2 {[%clk 0:02:58]}  O-O {[%clk 0:02:36]} 6. O-O {[%clk 0:02:59]}  dxc4 {[%clk 0:02:35]} 7. Ne5 {[%clk 0:02:59]}  c5 {[%clk 0:02:34]} 8. dxc5 {[%clk 0:02:52]}  Bxc5 {[%clk 0:02:29]} 9. Nxc4 {[%clk 0:02:52]}  Nc6 {[%clk 0:02:27]} 10. Nc3 {[%clk 0:02:50]}  Qe7 {[%clk 0:02:27]} 11. Bg5 {[%clk 0:02:46]}  Rd8 {[%clk 0:02:16]} 12. Qc1 {[%clk 0:02:46]}  Bd4 {[%clk 0:01:29]} 13. e3 {[%clk 0:02:44]}  Bxc3 {[%clk 0:01:24]} 14. Qxc3 {[%clk 0:02:45]}  h6 {[%clk 0:01:21]} 15. Bxf6 {[%clk 0:02:45]}  Qxf6 {[%clk 0:01:21]} 16. Qxf6 {[%clk 0:02:45]}  gxf6 {[%clk 0:01:21]} 17. Rfd1 {[%clk 0:02:46]}  Bd7 {[%clk 0:01:17]} 18. Nd6 {[%clk 0:02:45]}  Rab8 {[%clk 0:01:07]} 19. Nxb7 {[%clk 0:02:36]}  Rxb7 {[%clk 0:00:55]} 20. Bxc6 {[%clk 0:02:36]}  Rc7 {[%clk 0:00:55]} 21. Ba4 {[%clk 0:02:36]}  Kf8 {[%clk 0:00:50]} 22. Rd2 {[%clk 0:02:36]}  Ke7 {[%clk 0:00:38]} 23. Bb3 {[%clk 0:02:27]}  Bb5 {[%clk 0:00:31]} 24. Rad1 {[%clk 0:02:24]}  Rxd2 {[%clk 0:00:30]} 25. Rxd2 {[%clk 0:02:25]}  Rc1+ {[%clk 0:00:28]} 26. Rd1 {[%clk 0:02:24]}  Rc5 {[%clk 0:00:23]} 27. h4 {[%clk 0:02:16]}  a5 {[%clk 0:00:20]} 28. a4 {[%clk 0:02:05]}  Bc6 {[%clk 0:00:20]} 29. Kh2 {[%clk 0:01:59]}  Bf3 {[%clk 0:00:19]} 30. Re1 {[%clk 0:01:53]}  Rc6 {[%clk 0:00:16]} 31. Rb1 {[%clk 0:01:45]}  Rb6 {[%clk 0:00:15]} 32. Bc4 {[%clk 0:01:40]}  Be4 {[%clk 0:00:13]} 33. Re1 {[%clk 0:01:31]}  Rxb2 {[%clk 0:00:13]} 34. Re2 {[%clk 0:01:31]}  Rxe2 {[%clk 0:00:12]} 35. Bxe2 {[%clk 0:01:32]}  Kd6 {[%clk 0:00:12]} 36. Bh5 {[%clk 0:01:24]}  Bg6 {[%clk 0:00:11]} 37. Bd1 {[%clk 0:01:19]}  Kd5 {[%clk 0:00:08]} 38. g4 {[%clk 0:01:18]}  Kc5 {[%clk 0:00:08]} 39. Kg3 {[%clk 0:01:17]}  Bd3 {[%clk 0:00:08]} 40. Kf4 {[%clk 0:01:13]}  Kb4 {[%clk 0:00:08]} 41. g5 {[%clk 0:01:11]}  fxg5+ {[%clk 0:00:08]} 42. hxg5 {[%clk 0:01:12]}  hxg5+ {[%clk 0:00:08]} 43. Kxg5 {[%clk 0:01:12]}  Be4 {[%clk 0:00:07]} 44. Bh5 {[%clk 0:01:11]}  f5 {[%clk 0:00:06]} 45. Be8 {[%clk 0:01:00]}  Bc2 {[%clk 0:00:05]} 46. Kf6 {[%clk 0:01:00]}  Bxa4 {[%clk 0:00:05]} 47. Bxa4 {[%clk 0:00:44]}  Kxa4 {[%clk 0:00:05]} 48. Kxe6 {[%clk 0:00:43]}  Kb3 {[%clk 0:00:06]} 49. Kxf5 {[%clk 0:00:43]}  a4 {[%clk 0:00:06]} 50. e4 {[%clk 0:00:44]}  a3 {[%clk 0:00:06]} 51. e5 {[%clk 0:00:45]}  a2 {[%clk 0:00:07]} 52. e6 {[%clk 0:00:46]}  a1=Q {[%clk 0:00:07]} 53. e7 {[%clk 0:00:47]}  Qe1 {[%clk 0:00:05]} 54. Kf6 {[%clk 0:00:46]}  Qxf2+ {[%clk 0:00:05]} 55. Ke6 {[%clk 0:00:46]}  Qe3+ {[%clk 0:00:05]} 56. Kd7 {[%clk 0:00:46]}  Qd4+ {[%clk 0:00:05]} 57. Ke6 {[%clk 0:00:46]}  Qe4+ {[%clk 0:00:06]} 58. Kd7 {[%clk 0:00:46]}  Qd5+ {[%clk 0:00:06]} 59. Kc8 {[%clk 0:00:47]}  Qc5+ {[%clk 0:00:06]} 60. Kd7 {[%clk 0:00:47]}  Qd5+ {[%clk 0:00:05]} 61. Kc8 {[%clk 0:00:47]}  Qe6+ {[%clk 0:00:05]} 62. Kd8 {[%clk 0:00:47]}  Qd6+ {[%clk 0:00:06]} 63. Ke8 {[%clk 0:00:47]}  Kc4 {[%clk 0:00:06]} 64. Kf7 {[%clk 0:00:47]}  Qf4+ {[%clk 0:00:06]} 65. Ke6 {[%clk 0:00:48]}  Qe4+ {[%clk 0:00:07]} 66. Kf6 {[%clk 0:00:48]}  Qd4+ {[%clk 0:00:06]} 67. Kf7 {[%clk 0:00:48]}  Qe5 {[%clk 0:00:03]} 68. e8=Q {[%clk 0:00:47]}  Qxe8+ {[%clk 0:00:04]} 69. Kxe8 {[%clk 0:00:48]} 1/2-1/2


[Site "https://www.chess.com"]

[Event "Titled Tuesday Blitz May 24 Late 2022"]
[White "Lutz, Igor Oscar"]
[Black "Redor, Menandro"]
[WhiteFideId "2110806"]
[BlackFideId "5222010"]
[WhiteElo "1739"]
[BlackElo "1986"]
[Result "0-1"]
[Round "07"]
[TimeControl "180+1"]
[Date "2022.05.25"]
[WhiteClock "0:00:04"]
[BlackClock "0:00:40"]

1. d4 {[%clk 0:02:51]}  c5 {[%clk 0:03:00]} 2. d5 {[%clk 0:02:49]}  d6 {[%clk 0:03:00]} 3. c4 {[%clk 0:02:49]}  Nf6 {[%clk 0:02:59]} 4. Nc3 {[%clk 0:02:48]}  b5 {[%clk 0:02:59]} 5. cxb5 {[%clk 0:02:49]}  a6 {[%clk 0:02:59]} 6. b6 {[%clk 0:02:47]}  Qxb6 {[%clk 0:02:59]} 7. Nf3 {[%clk 0:02:46]}  g6 {[%clk 0:02:58]} 8. e4 {[%clk 0:02:47]}  Bg7 {[%clk 0:02:59]} 9. Be2 {[%clk 0:02:47]}  O-O {[%clk 0:02:58]} 10. O-O {[%clk 0:02:47]}  a5 {[%clk 0:02:56]} 11. a4 {[%clk 0:02:44]}  Na6 {[%clk 0:02:54]} 12. Bb5 {[%clk 0:02:40]}  Nb4 {[%clk 0:02:51]} 13. Nd2 {[%clk 0:02:33]}  Ba6 {[%clk 0:02:47]} 14. Nc4 {[%clk 0:02:32]}  Qc7 {[%clk 0:02:45]} 15. Bxa6 {[%clk 0:02:28]}  Rxa6 {[%clk 0:02:46]} 16. Nb5 {[%clk 0:02:27]}  Qd8 {[%clk 0:02:42]} 17. Re1 {[%clk 0:02:13]}  Nd7 {[%clk 0:02:28]} 18. Ra3 {[%clk 0:01:43]}  Nb6 {[%clk 0:02:26]} 19. Qe2 {[%clk 0:01:25]}  Nxc4 {[%clk 0:02:17]} 20. Qxc4 {[%clk 0:01:25]}  Rb6 {[%clk 0:02:17]} 21. Rh3 {[%clk 0:01:12]}  Qd7 {[%clk 0:02:13]} 22. b3 {[%clk 0:01:02]}  Rfb8 {[%clk 0:02:08]} 23. Bh6 {[%clk 0:00:57]}  Rxb5 {[%clk 0:02:00]} 24. axb5 {[%clk 0:00:54]}  Qxb5 {[%clk 0:02:01]} 25. Qxb5 {[%clk 0:00:54]}  Rxb5 {[%clk 0:02:02]} 26. Bxg7 {[%clk 0:00:54]}  Kxg7 {[%clk 0:02:02]} 27. Ra1 {[%clk 0:00:51]}  Nc2 {[%clk 0:01:58]} 28. Ra2 {[%clk 0:00:44]}  Nd4 {[%clk 0:01:57]} 29. f4 {[%clk 0:00:25]}  Nxb3 {[%clk 0:01:41]} 30. Kf2 {[%clk 0:00:17]}  Nd4 {[%clk 0:01:39]} 31. Rha3 {[%clk 0:00:17]}  Nb3 {[%clk 0:01:30]} 32. Rb2 {[%clk 0:00:16]}  c4 {[%clk 0:01:29]} 33. Ke3 {[%clk 0:00:15]}  f5 {[%clk 0:01:25]} 34. e5 {[%clk 0:00:14]}  dxe5 {[%clk 0:01:20]} 35. fxe5 {[%clk 0:00:14]}  Rxd5 {[%clk 0:01:17]} 36. Ra4 {[%clk 0:00:11]}  Rxe5+ {[%clk 0:01:08]} 37. Kf4 {[%clk 0:00:11]}  Rc5 {[%clk 0:01:05]} 38. Rc2 {[%clk 0:00:10]}  e5+ {[%clk 0:01:02]} 39. Kf3 {[%clk 0:00:10]}  c3 {[%clk 0:01:02]} 40. Kf2 {[%clk 0:00:06]}  Nd4 {[%clk 0:01:02]} 41. Rc1 {[%clk 0:00:05]}  c2 {[%clk 0:00:58]} 42. Ra2 {[%clk 0:00:05]}  Kf6 {[%clk 0:00:53]} 43. Ke3 {[%clk 0:00:05]}  Rc3+ {[%clk 0:00:46]} 44. Kd2 {[%clk 0:00:05]}  Rc5 {[%clk 0:00:42]} 45. Kd3 {[%clk 0:00:05]}  Ke6 {[%clk 0:00:40]} 46. Ra4 {[%clk 0:00:04]}  Kd5 {[%clk 0:00:40]} 47. Ra2 {[%clk 0:00:04]}  e4+ {[%clk 0:00:40]} 48. Kd2 {[%clk 0:00:04]}  Nb3+ {[%clk 0:00:40]} 0-1


[Site "https://www.chess.com"]

[Event "Titled Tuesday Blitz May 24 Late 2022"]
[White "Mekhitarian, Krikor Sevag"]
[Black "O`Gorman, Tom"]
[WhiteFideId "2107660"]
[BlackFideId "2508249"]
[WhiteElo "2598"]
[BlackElo "2247"]
[Result "1-0"]
[Round "07"]
[TimeControl "180+1"]
[Date "2022.05.24"]
[WhiteClock "0:00:19"]
[BlackClock "0:00:16"]

1. d4 {[%clk 0:03:00]}  Nf6 {[%clk 0:02:58]} 2. Nf3 {[%clk 0:03:00]}  g6 {[%clk 0:02:58]} 3. Nc3 {[%clk 0:02:58]}  Bg7 {[%clk 0:02:59]} 4. e4 {[%clk 0:02:58]}  d6 {[%clk 0:02:59]} 5. h3 {[%clk 0:02:58]}  O-O {[%clk 0:02:58]} 6. Be3 {[%clk 0:02:58]}  e5 {[%clk 0:02:59]} 7. Bd3 {[%clk 0:02:26]}  Nc6 {[%clk 0:02:55]} 8. d5 {[%clk 0:02:17]}  Nb4 {[%clk 0:02:46]} 9. Be2 {[%clk 0:02:13]}  Nh5 {[%clk 0:02:45]} 10. a3 {[%clk 0:02:09]}  Na6 {[%clk 0:02:43]} 11. g3 {[%clk 0:01:48]}  c5 {[%clk 0:02:05]} 12. Nd2 {[%clk 0:01:40]}  Nf6 {[%clk 0:02:01]} 13. g4 {[%clk 0:01:41]}  Nc7 {[%clk 0:02:00]} 14. a4 {[%clk 0:01:38]}  b6 {[%clk 0:01:58]} 15. h4 {[%clk 0:01:37]}  Rb8 {[%clk 0:01:50]} 16. h5 {[%clk 0:01:36]}  a6 {[%clk 0:01:44]} 17. h6 {[%clk 0:01:09]}  Bh8 {[%clk 0:01:43]} 18. g5 {[%clk 0:01:10]}  Nd7 {[%clk 0:01:25]} 19. Bg4 {[%clk 0:01:10]}  b5 {[%clk 0:01:22]} 20. axb5 {[%clk 0:01:11]}  axb5 {[%clk 0:01:22]} 21. b4 {[%clk 0:01:12]}  cxb4 {[%clk 0:01:16]} 22. Na2 {[%clk 0:01:12]}  Na6 {[%clk 0:01:08]} 23. O-O {[%clk 0:01:07]}  f5 {[%clk 0:01:07]} 24. gxf6 {[%clk 0:01:03]}  Nxf6 {[%clk 0:01:04]} 25. Bxc8 {[%clk 0:01:02]}  Qxc8 {[%clk 0:01:05]} 26. Qe2 {[%clk 0:00:42]}  Qh3 {[%clk 0:00:58]} 27. f3 {[%clk 0:00:42]}  Nh5 {[%clk 0:00:52]} 28. Qg2 {[%clk 0:00:42]}  Qxg2+ {[%clk 0:00:49]} 29. Kxg2 {[%clk 0:00:43]}  Rfc8 {[%clk 0:00:49]} 30. Rfc1 {[%clk 0:00:42]}  Rb7 {[%clk 0:00:38]} 31. Rab1 {[%clk 0:00:33]}  Rbc7 {[%clk 0:00:35]} 32. Rb2 {[%clk 0:00:34]}  Nf4+ {[%clk 0:00:31]} 33. Kf2 {[%clk 0:00:34]}  Bf6 {[%clk 0:00:22]} 34. Nb3 {[%clk 0:00:32]}  Bh4+ {[%clk 0:00:18]} 35. Kf1 {[%clk 0:00:32]}  Bg5 {[%clk 0:00:19]} 36. Na5 {[%clk 0:00:28]}  Bxh6 {[%clk 0:00:18]} 37. Nc6 {[%clk 0:00:27]}  Nb8 {[%clk 0:00:18]} 38. Naxb4 {[%clk 0:00:27]}  Nxc6 {[%clk 0:00:18]} 39. Nxc6 {[%clk 0:00:28]}  Bg7 {[%clk 0:00:17]} 40. Rxb5 {[%clk 0:00:27]}  Ne6 {[%clk 0:00:17]} 41. Rcb1 {[%clk 0:00:21]}  Nd8 {[%clk 0:00:18]} 42. Na7 {[%clk 0:00:17]}  Ra8 {[%clk 0:00:17]} 43. Rb8 {[%clk 0:00:18]}  Rxb8 {[%clk 0:00:16]} 44. Rxb8 {[%clk 0:00:19]}  Bf6 {[%clk 0:00:17]} 45. Nc6 {[%clk 0:00:18]}  Rd7 {[%clk 0:00:16]} 46. Bb6 {[%clk 0:00:19]}  Kf7 {[%clk 0:00:16]} 47. Bxd8 {[%clk 0:00:19]} 1-0


[Site "https://www.chess.com"]

[Event "Titled Tuesday Blitz May 24 Late 2022"]
[White "Milchev, Nikolay"]
[Black "Saim, Mohamed Ilias"]
[WhiteFideId "2906090"]
[BlackFideId "7900465"]
[WhiteElo "2449"]
[BlackElo "2006"]
[Result "1-0"]
[Round "07"]
[TimeControl "180+1"]
[Date "2022.05.25"]
[WhiteClock "0:02:03"]
[BlackClock "0:01:14"]

1. Nf3 {[%clk 0:03:00]}  Nf6 {[%clk 0:02:59]} 2. c4 {[%clk 0:03:01]}  e6 {[%clk 0:02:58]} 3. g3 {[%clk 0:03:01]}  d5 {[%clk 0:02:57]} 4. Bg2 {[%clk 0:03:02]}  Be7 {[%clk 0:02:55]} 5. O-O {[%clk 0:03:02]}  O-O {[%clk 0:02:55]} 6. d4 {[%clk 0:03:03]}  Ne4 {[%clk 0:02:50]} 7. Nbd2 {[%clk 0:03:03]}  f5 {[%clk 0:02:49]} 8. Qb3 {[%clk 0:03:00]}  Nc6 {[%clk 0:02:41]} 9. e3 {[%clk 0:02:59]}  Bb4 {[%clk 0:02:27]} 10. Qc2 {[%clk 0:02:41]}  Bd7 {[%clk 0:02:13]} 11. a3 {[%clk 0:02:41]}  Be7 {[%clk 0:02:11]} 12. b4 {[%clk 0:02:37]}  Bf6 {[%clk 0:02:05]} 13. b5 {[%clk 0:02:34]}  Na5 {[%clk 0:01:52]} 14. a4 {[%clk 0:02:34]}  b6 {[%clk 0:01:44]} 15. Ba3 {[%clk 0:02:16]}  c5 {[%clk 0:01:41]} 16. bxc6 {[%clk 0:02:15]}  Nxc6 {[%clk 0:01:24]} 17. Bxf8 {[%clk 0:02:14]}  Qxf8 {[%clk 0:01:24]} 18. Nxe4 {[%clk 0:02:08]}  fxe4 {[%clk 0:01:21]} 19. Nd2 {[%clk 0:02:07]}  Nb4 {[%clk 0:01:17]} 20. Qb3 {[%clk 0:02:06]}  Nd3 {[%clk 0:01:14]} 21. cxd5 {[%clk 0:02:03]} 1-0


[Site "https://www.chess.com"]